bitfinex-derivatives/quotes_BNBF0:USTF0_20250609
["timestamp","ask_amount","ask_price","bid_price","bid_amount"]
[1749459827767,0.26774483,650.02,649.38,3.82380927]
[1749459827962,1.09196758,650.49,649.38,3.82380927]
[1749459828164,0.26777676,649.9,649.38,3.82380927]
[1749459828359,1.09196758,650.46,649.38,3.82380927]
[1749459828565,0.30748416,650.44,649.23,3.82380927]
[1749459828761,1.09196758,650.43,649.23,3.82380927]
[1749459828963,0.30749834,650.41,649.2,4.90780927]
[1749459829463,0.30749834,650.41,649.2,1.084]
[1749459829663,0.2678087,650.11,649.2,1.084]
[1749459831266,0.2678087,650.11,649.18,3.82380927]
[1749459833562,0.2678087,650.11,649.16,3.82380927]
[1749459833762,0.2678087,650.11,649.19,1.416]
[1749459838369,0.2678087,650.11,649.22,3.82380927]
[1749459838770,0.2678087,650.11,649.27,3.82380927]
[1749459840172,0.2678087,650.11,649.26,3.82380927]
[1749459841569,0.2678087,650.11,649.27,3.82380927]
[1749459842473,0.2678087,650.11,649.26,3.82380927]
[1749459843272,0.2678087,650.11,649.31,3.82380927]
[1749459843974,0.2678087,650.11,649.33,3.82380927]
[1749459844676,0.2678087,650.11,649.32,3.82380927]
[1749459845178,0.2678087,650.11,649.19,1.416]
[1749459845580,0.57544894,650.11,649.19,1.416]
[1749459862896,0.57544894,650.11,649.09,0.30812368]
[1749459865998,0.57544894,650.11,649.1,1.363]
[1749459866799,0.57544894,650.11,649.14,3.82380927]
[1749459867997,0.57544894,650.11,649.13,3.82380927]
[1749459868997,0.57544894,650.11,649.15,3.82380927]
[1749459869301,0.57544894,650.11,649.18,3.82380927]
[1749459870203,0.57544894,650.11,649.19,3.82380927]
[1749459871705,0.57544894,650.11,649.18,3.82380927]
[1749459872506,0.57544894,650.11,649.19,3.82380927]
[1749459873006,0.57544894,650.11,649.2,3.82380927]
[1749459873507,0.57544894,650.11,649.19,3.82380927]
[1749459875201,0.57544894,650.11,649.18,3.82380927]
[1749459877503,0.57544894,650.11,649.19,3.82380927]
[1749459877907,0.57544894,650.11,649.2,3.82380927]
[1749459878607,0.57544894,650.11,649.21,3.82380927]
[1749459878809,0.57544894,650.11,649.2,3.82380927]
[1749459879305,0.57544894,650.11,649.21,3.82380927]
[1749459881203,0.57544894,650.11,649.24,3.82380927]
[1749459881609,0.57544894,650.11,649.27,3.82380927]
[1749459883412,0.57544894,650.11,649.26,3.82380927]
[1749459884306,0.57544894,650.11,649.22,3.82380927]
[1749459885207,0.57544894,650.11,649.24,3.82380927]
[1749459887507,0.57544894,650.11,649.19,3.82380927]
[1749459891513,0.57544894,650.11,649.18,3.82380927]
[1749459892919,0.57544894,650.11,649.16,3.82380927]
[1749459893320,0.57544894,650.11,649.2,3.82380927]
[1749459894216,0.57544894,650.11,649.25,3.82380927]
[1749459895817,0.57544894,650.11,649.26,1.224]
[1749459897519,0.57544894,650.11,649.29,3.82380927]
[1749459897822,0.57544894,650.11,649.27,3.82380927]
[1749459899624,0.57544894,650.11,649.28,3.82380927]
[1749459901425,0.57544894,650.11,649.3,3.82380927]
[1749459901820,0.57544894,650.11,649.29,3.82380927]
[1749459903021,0.57544894,650.11,649.32,3.82380927]
[1749459903222,1.09256981,650.1,649.32,3.82380927]
[1749459903426,1.09256981,650.09,649.26,5.04780927]
[1749459903626,1.09256981,650.08,649.26,5.04780927]
[1749459903826,1.09256981,650.07,649.26,5.04780927]
[1749459904125,1.09256981,650.06,649.26,5.04780927]
[1749459904325,1.09256981,650.1,649.26,5.04780927]
[1749459904525,1.09256981,650.09,649.26,5.04780927]
[1749459904724,1.09256981,650.08,649.26,5.04780927]
[1749459904926,1.09256981,650.07,649.26,5.04780927]
[1749459905226,1.09256981,650.06,649.26,5.04780927]
[1749459905428,1.09256981,650.05,649.26,5.04780927]
[1749459905723,0.57544894,650.11,649.27,3.82380927]
[1749459905925,1.09395107,650.1,649.29,3.82380927]
[1749459906123,1.09395107,650.09,649.29,3.82380927]
[1749459906424,1.09395107,650.08,649.26,5.04780927]
[1749459906624,1.09395107,650.07,649.26,5.04780927]
[1749459906824,1.09395107,650.06,649.26,5.04780927]
[1749459907024,1.09395107,650.05,649.26,5.04780927]
[1749459907224,0.57544894,650.11,649.26,5.04780927]
[1749459907523,1.09389652,650.1,649.26,5.04780927]
[1749459907725,1.09389652,650.09,649.29,3.82380927]
[1749459907926,1.09389652,650.08,649.29,3.82380927]
[1749459908125,1.09389652,650.07,649.29,3.82380927]
[1749459908325,1.09389652,650.06,649.29,3.82380927]
[1749459908525,1.09389652,650.05,649.29,3.82380927]
[1749459908730,0.57544894,650.11,649.29,3.82380927]
[1749459909032,1.09389461,650.1,649.29,3.82380927]
[1749459909327,1.09389461,650.09,649.29,3.82380927]
[1749459909527,1.09389461,650.08,649.29,3.82380927]
[1749459909832,1.09389461,650.07,649.29,3.82380927]
[1749459910032,1.09389461,650.06,649.29,3.82380927]
[1749459910229,1.09389461,650.05,649.29,3.82380927]
[1749459910430,0.57544894,650.11,649.29,3.82380927]
[1749459910628,1.09389726,650.1,649.29,3.82380927]
[1749459910828,1.09389726,650.09,649.29,3.82380927]
[1749459911029,1.09389726,650.08,649.29,3.82380927]
[1749459911233,1.09389726,650.07,649.29,3.82380927]
[1749459911533,1.09389726,650.06,649.29,3.82380927]
[1749459911828,1.09389726,650.05,649.29,3.82380927]
[1749459912030,0.57544894,650.11,649.29,3.82380927]
[1749459912233,1.09384191,650.1,649.29,3.82380927]
[1749459912430,1.09384191,650.09,649.29,3.82380927]
[1749459912627,1.09384191,650.08,649.29,3.82380927]
[1749459912832,1.09384191,650.07,649.29,3.82380927]
[1749459913030,1.09384191,650.06,649.29,3.82380927]
[1749459913231,1.09384191,650.1,649.29,3.82380927]
[1749459913431,1.09384191,650.09,649.29,3.82380927]
[1749459913731,1.09384191,650.08,649.3,3.82380927]
[1749459913931,1.09384191,650.07,649.3,3.82380927]
[1749459914136,1.09384191,650.06,649.3,3.82380927]
[1749459914337,1.09384191,650.1,649.3,3.82380927]
[1749459914631,1.09384191,650.09,649.3,3.82380927]
[1749459914831,1.09384191,650.08,649.3,3.82380927]
[1749459915032,1.09384191,650.07,649.3,3.82380927]
[1749459915235,0.57544894,650.11,649.3,3.82380927]
[1749459915236,1.09384191,650.06,649.3,3.82380927]
[1749459915435,1.09384191,650.1,649.3,3.82380927]
[1749459915635,1.09384191,650.09,649.3,3.82380927]
[1749459915933,1.09384191,650.08,649.3,3.82380927]
[1749459916233,1.09384191,650.07,649.3,3.82380927]
[1749459916431,1.09384191,650.06,649.3,3.82380927]
[1749459916630,1.09384191,650.1,649.3,3.82380927]
[1749459916831,1.09384191,650.09,649.3,3.82380927]
[1749459917032,1.09384191,650.08,649.3,3.82380927]
[1749459917236,1.09384191,650.07,649.3,3.82380927]
[1749459917535,1.09384191,650.06,649.3,3.82380927]
[1749459917735,1.09384191,650.1,649.3,3.82380927]
[1749459917931,1.09384191,650.09,649.3,3.82380927]
[1749459918135,1.09384191,650.08,649.3,3.82380927]
[1749459918332,1.09384191,650.07,649.3,3.82380927]
[1749459918531,1.09384191,650.06,649.3,3.82380927]
[1749459918834,1.09384191,650.1,649.3,3.82380927]
[1749459919032,1.09384191,650.09,649.3,3.82380927]
[1749459919232,1.09384191,650.08,649.3,3.82380927]
[1749459919536,1.09384191,650.07,649.3,3.82380927]
[1749459919732,1.09384191,650.06,649.3,3.82380927]
[1749459919937,1.09384191,650.1,649.3,3.82380927]
[1749459920138,1.09384191,650.09,649.3,3.82380927]
[1749459920338,1.09384191,650.08,649.24,3.82380927]
[1749459920538,1.09384191,650.07,649.24,3.82380927]
[1749459920738,1.09384191,650.06,649.24,3.82380927]
[1749459920939,1.09372543,650.1,649.24,3.82380927]
[1749459921141,1.09372543,650.09,649.11,3.82380927]
[1749459921340,1.09372543,650.08,649.11,3.82380927]
[1749459921537,1.09372543,650.07,649.11,3.82380927]
[1749459921736,1.09372543,650.06,649.11,3.82380927]
[1749459921937,1.09372543,650.05,649.11,3.82380927]
[1749459922239,0.57544894,650.11,649.11,3.82380927]
[1749459922435,1.09374947,650.1,649.11,3.82380927]
[1749459922640,1.09374947,650.09,649.11,3.82380927]
[1749459922840,1.09374947,650.08,649.09,4.13193295]
[1749459923040,1.09374947,650.07,649.09,4.13193295]
[1749459923240,1.09374947,650.06,649.1,1.131]
[1749459923442,1.09374947,650.05,649.1,1.131]
[1749459923639,0.57544894,650.11,649.1,1.131]
[1749459923839,1.09374297,650.1,649.1,1.131]
[1749459924037,1.09374297,650.09,649.1,1.131]
[1749459924236,1.09374297,650.08,649.1,1.131]
[1749459924440,1.09374297,650.07,649.1,1.131]
[1749459924640,1.09374297,650.06,649.1,1.131]
[1749459924842,1.09374297,650.05,649.1,1.131]
[1749459925138,0.57544894,650.11,649.1,1.131]
[1749459925342,1.09374653,650.1,649.1,1.131]
[1749459925542,1.09374653,650.09,649.1,1.131]
[1749459925740,1.09374653,650.08,649.1,1.131]
[1749459925942,0.57544894,650.11,649.1,1.131]
[1749459925943,1.09374653,650.07,649.1,1.131]
[1749459926143,1.09374653,650.06,649.1,1.131]
[1749459926346,1.09374653,650.05,649.1,1.131]
[1749459926544,0.57544894,650.11,649.1,4.95480927]
[1749459926745,1.0935533,650.1,649.1,4.95480927]
[1749459926942,1.0935533,650.09,649.1,4.95480927]
[1749459927140,1.0935533,650.08,649.1,4.95480927]
[1749459927343,1.0935533,650.07,649.1,4.95480927]
[1749459927546,1.0935533,650.06,649.1,4.95480927]
[1749459927746,1.0935533,650.05,649.1,4.95480927]
[1749459927947,0.57544894,650.11,649.1,4.95480927]
[1749459928244,1.09354631,650.1,649.1,1.131]
[1749459928446,1.09354631,650.09,649.1,1.131]
[1749459928649,1.09354631,650.08,649.1,1.131]
[1749459928946,1.09354631,650.07,649.1,1.131]
[1749459929146,1.09354631,650.06,649.1,1.131]
[1749459929341,1.09354631,650.05,649.1,1.131]
[1749459929546,0.57544894,650.11,649.1,1.131]
[1749459930047,1.0936786,650.1,649.1,1.131]
[1749459930343,1.0936786,650.09,649.1,1.131]
[1749459930547,1.0936786,650.08,649.1,1.131]
[1749459930747,1.0936786,650.07,649.1,1.131]
[1749459930943,1.0936786,650.06,649.1,1.131]
[1749459931142,1.0936786,650.05,649.15,3.82380927]
[1749459931347,0.57544894,650.11,649.15,3.82380927]
[1749459931644,1.09364114,650.1,649.15,3.82380927]
[1749459931848,1.09364114,650.09,649.15,3.82380927]
[1749459932048,1.09364114,650.08,649.15,3.82380927]
[1749459932343,1.09364114,650.07,649.15,3.82380927]
[1749459932548,1.09364114,650.06,649.15,3.82380927]
[1749459932848,1.09364114,650.05,649.18,3.82380927]
[1749459933148,0.57544894,650.11,649.18,3.82380927]
[1749459933348,0.57544894,650.11,649.23,3.82380927]
[1749459933750,0.57544894,650.11,649.19,3.82380927]
[1749459934946,0.57544894,650.11,649.2,3.82380927]
[1749459937351,0.57544894,650.11,649.18,3.82380927]
[1749459938152,0.57544894,650.11,649.19,3.82380927]
[1749459938647,0.57544894,650.11,649.21,3.82380927]
[1749459939648,0.57544894,650.11,649.22,3.82380927]
[1749459940052,0.57544894,650.11,649.1,1.131]
[1749459940053,0.57544894,650.11,649.28,3.82380927]
[1749459941353,0.57544894,650.11,649.25,3.82380927]
[1749459943252,0.57544894,650.11,649.28,3.82380927]
[1749459943854,0.57544894,650.11,649.11,3.82380927]
[1749459945556,0.57544894,650.11,649.1,1.131]
[1749459950357,0.57544894,650.11,649.09,0.30812368]
[1749459953162,1.09427256,650.1,649.09,0.30812368]
[1749459953558,0.57544894,650.11,649.11,3.82380927]
[1749459954565,0.57544894,650.11,649.1,1.237]
[1749459955360,0.57544894,650.11,649.1,5.06080927]
[1749459956265,0.57544894,650.11,649.12,3.82380927]
[1749459956666,0.57544894,650.11,649.17,3.82380927]
[1749459957266,0.57544894,650.11,649.15,3.82380927]
[1749459959065,0.57544894,650.11,649.14,3.82380927]
[1749459960470,0.57544894,650.11,649.15,3.82380927]
[1749459961373,0.57544894,650.11,649.22,3.82380927]
[1749459961873,0.57544894,650.11,649.23,3.82380927]
[1749459962773,0.57544894,650.11,649.21,3.82380927]
[1749459963673,0.57544894,650.11,649.24,3.82380927]
[1749459964173,0.57544894,650.11,649.22,3.82380927]
[1749459964870,0.57544894,650.11,649.18,3.82380927]
[1749459965370,0.57544894,650.11,649.19,3.82380927]
[1749459966274,0.57544894,650.11,649.2,3.82380927]
[1749459966774,0.57544894,650.11,649.21,3.82380927]
[1749459967173,0.57544894,650.11,649.19,3.82380927]
[1749459969075,0.57544894,650.11,649.2,3.82380927]
[1749459971478,0.57544894,650.11,649.21,3.82380927]
[1749459972686,0.57544894,650.11,649.22,3.82380927]
[1749459973585,0.57544894,650.11,649.24,3.82380927]
[1749459973981,0.57544894,650.11,649.26,3.82380927]
[1749459974886,0.57544894,650.11,649.34,3.82380927]
[1749459975383,0.57544894,650.11,649.29,3.82380927]
[1749459976087,0.57544894,650.11,649.3,1.449]
[1749459977182,0.57544894,650.11,649.33,3.82380927]
[1749459977581,0.57544894,650.11,649.3,1.449]
[1749459977582,0.57544894,650.11,649.3,5.27280927]
[1749459977983,0.57544894,650.11,649.3,1.449]
[1749460000005,0.57544894,650.11,649.24,3.82380927]
[1749460000504,0.57544894,650.11,649.25,3.82380927]
[1749460001506,0.57544894,650.11,649.24,3.82380927]
[1749460002506,0.57544894,650.11,649.27,3.82380927]
[1749460002910,0.57544894,650.11,649.35,3.82380927]
[1749460003207,0.57544894,650.11,649.39,3.82380927]
[1749460004209,0.57544894,650.11,649.4,3.82380927]
[1749460005106,0.57544894,650.11,649.25,1.418]
[1749460005107,0.57544894,650.11,649.35,3.82380927]
[1749460007408,0.57544894,650.11,649.36,3.82380927]
[1749460007810,0.57544894,650.11,649.35,3.82380927]
[1749460008708,0.57544894,650.11,649.37,3.82380927]
[1749460009714,0.57544894,650.11,649.26,3.82380927]
[1749460010609,0.57544894,650.11,649.25,1.418]
[1749460010610,0.57544894,650.11,649.27,3.82380927]
[1749460011015,0.57544894,650.11,649.28,3.82380927]
[1749460011914,0.57544894,650.11,649.29,3.82380927]
[1749460012211,0.57544894,650.11,649.25,1.418]
[1749460022622,0.57544894,650.11,649.25,5.24180927]
[1749460023227,0.57544894,650.11,649.27,3.82380927]
[1749460023723,0.57544894,650.11,649.28,3.82380927]
[1749460024121,0.57544894,650.11,649.31,3.82380927]
[1749460024923,0.57544894,650.11,649.29,3.82380927]
[1749460025422,0.57544894,650.11,649.31,3.82380927]
[1749460025827,0.57544894,650.11,649.3,3.82380927]
[1749460026225,0.57544894,650.11,649.29,3.82380927]
[1749460027128,0.57544894,650.11,649.26,3.82380927]
[1749460029727,0.30764024,650.11,649.26,3.82380927]
[1749460029925,0.26779943,649.95,649.25,1.418]
[1749460030224,0.26779943,649.95,649.21,3.82380927]
[1749460032123,0.26779943,649.95,649.25,3.82380927]
[1749460032930,0.26779943,649.95,649.26,1.495]
[1749460033432,0.26779943,649.95,649.34,3.82380927]
[1749460034328,0.26779943,649.95,649.33,3.82380927]
[1749460034734,0.26779943,649.95,649.34,3.82380927]
[1749460035230,0.26779943,649.95,649.33,3.82380927]
[1749460035734,0.26779943,649.95,649.35,3.82380927]
[1749460037134,0.26779943,649.95,649.38,3.82380927]
[1749460038835,0.26779943,649.95,649.26,1.495]
[1749460046431,0.30764024,650.11,649.26,1.495]
[1749460046835,0.26779118,649.99,649.26,1.495]
[1749460048232,0.26779118,649.99,649.34,3.82380927]
[1749460048637,0.26779118,649.99,649.35,3.82380927]
[1749460050134,0.26779118,649.99,649.36,3.82380927]
[1749460052736,0.26779118,649.99,649.35,3.82380927]
[1749460054043,0.26779118,649.99,649.13,0.26779943]
[1749460054044,0.26779118,649.99,649.41,3.82380927]
[1749460055446,0.26779118,649.99,649.42,3.82380927]
[1749460055843,0.26779118,649.99,649.52,3.82380927]
[1749460058542,0.26779118,649.99,649.54,3.82380927]
[1749460059444,0.26779118,649.99,649.36,4.84280927]
[1749460060245,0.26779118,649.99,649.36,1.019]
[1749460060944,0.26779118,649.99,649.36,4.84280927]
[1749460061345,0.26779118,649.99,649.37,3.82380927]
[1749460065843,0.26779118,649.99,649.36,1.019]
[1749460069154,0.26779118,649.99,649.45,3.82380927]
[1749460071256,0.26779118,649.99,649.44,3.82380927]
[1749460072257,0.26779118,649.99,649.45,3.82380927]
[1749460073158,0.26779118,649.99,649.46,3.82380927]
[1749460073551,0.26779118,649.99,649.54,3.82380927]
[1749460074953,0.26779118,649.99,649.58,3.82380927]
[1749460075258,0.04978918,649.99,649.58,3.82380927]
[1749460075460,0.04978918,649.99,649.59,3.82380927]
[1749460075758,0.30764024,650.11,649.6,3.82380927]
[1749460076356,0.30764024,650.11,649.59,3.82380927]
[1749460076655,0.30764024,650.11,649.58,3.82380927]
[1749460078764,0.26771496,649.98,649.56,3.82380927]
[1749460078961,0.26771496,649.98,649.57,3.82380927]
[1749460080056,0.26771496,649.98,649.53,3.82380927]
[1749460080255,0.26771496,649.98,649.52,3.82380927]
[1749460080761,0.26771496,649.98,649.54,3.82380927]
[1749460083554,0.26771496,649.98,649.43,3.82380927]
[1749460084760,0.26771496,649.98,649.44,3.82380927]
[1749460086258,0.26771496,649.98,649.45,0.987]
[1749460087160,0.26771496,649.98,649.46,3.82380927]
[1749460088061,0.26771496,649.98,649.49,3.82380927]
[1749460089059,0.26771496,649.98,649.48,3.82380927]
[1749460090063,0.26771496,649.98,649.51,3.82380927]
[1749460090263,0.26771496,649.98,649.55,3.82380927]
[1749460091665,0.26771496,649.98,649.56,3.82380927]
[1749460093564,0.26771496,649.98,649.57,3.82380927]
[1749460095667,0.26771496,649.98,649.58,3.82380927]
[1749460101467,0.26771496,649.98,649.59,1.211]
[1749460106168,0.09251769,649.98,649.59,1.211]
[1749460106367,0.30764024,650.11,649.59,1.211]
[1749460109373,0.26771702,649.99,649.59,1.211]
[1749460111470,0.26771702,649.99,649.6,3.82380927]
[1749460113770,0.26771702,649.99,649.59,1.211]
[1749460116678,0.26771702,649.99,649.13,0.26779943]
[1749460123678,0.26771702,649.99,649.45,3.82380927]
[1749460124677,0.26771702,649.99,649.51,3.82380927]
[1749460125183,0.26771702,649.99,649.13,0.26779943]
[1749460125184,0.26771702,649.99,649.49,3.82380927]
[1749460125585,0.26771702,649.99,649.53,3.82380927]
[1749460126387,0.05063499,649.99,649.63,3.82380927]
[1749460126586,0.30764024,650.11,649.63,3.82380927]
[1749460128589,0.30764024,650.11,649.65,3.82380927]
[1749460128985,0.30764024,650.11,649.66,3.82380927]
[1749460129789,0.26770363,650.04,649.66,3.82380927]
[1749460130089,0.26770363,650.04,649.65,3.82380927]
[1749460130989,0.26770363,650.04,649.67,3.82380927]
[1749460132588,0.26770363,650.04,649.65,3.82380927]
[1749460133486,0.26770363,650.04,649.5,3.82380927]
[1749460134791,0.26770363,650.04,649.51,3.82380927]
[1749460136286,0.26770363,650.04,649.5,3.82380927]
[1749460136692,0.26770363,650.04,649.51,3.82380927]
[1749460137587,0.26770363,650.04,649.13,1.66779943]
[1749460143402,0.26770363,650.04,649.2,3.82380927]
[1749460146203,0.26770363,650.04,649.21,3.82380927]
[1749460146701,0.26770363,650.04,649.2,3.82380927]
[1749460147500,0.26770363,650.04,649.53,3.82380927]
[1749460153008,0.26770363,650.04,649.52,3.82380927]
[1749460153311,0.26770363,650.04,649.5,3.82380927]
[1749460153813,0.26770363,650.04,649.51,3.82380927]
[1749460156712,0.26770363,650.04,649.57,3.82380927]
[1749460160714,0.26770363,650.04,649.52,3.82380927]
[1749460162119,0.26770363,650.04,649.53,3.82380927]
[1749460163320,0.26770363,650.04,649.54,3.82380927]
[1749460163720,0.26770363,650.04,649.57,3.82380927]
[1749460164121,0.26770363,650.04,649.51,3.82380927]
[1749460166119,0.26770363,650.04,649.48,3.82380927]
[1749460166523,0.26770363,650.04,649.57,3.82380927]
[1749460167721,0.26770363,650.04,649.53,3.82380927]
[1749460169223,0.26770363,650.04,649.52,3.82380927]
[1749460169627,0.26770363,650.04,649.53,3.82380927]
[1749460170027,0.26770363,650.04,649.5,3.82380927]
[1749460170423,0.26770363,650.04,649.51,3.82380927]
[1749460170825,0.26770363,650.04,649.5,3.82380927]
[1749460173735,0.26770363,650.04,649.44,3.82380927]
[1749460174132,0.26770363,650.04,649.46,3.82380927]
[1749460174538,0.26770363,650.04,649.45,3.82380927]
[1749460175833,0.26770363,650.04,649.46,3.82380927]
[1749460176233,0.26770363,650.04,649.43,1.354]
[1749460176234,0.26770363,650.04,649.48,3.82380927]
[1749460177636,0.26770363,650.04,649.51,3.82380927]
[1749460178134,0.26770363,650.04,649.43,1.354]
[1749460183736,0.26770363,650.04,649.43,5.17780927]
[1749460184140,0.26770363,650.04,649.45,3.82380927]
[1749460186741,0.26770363,650.04,649.43,1.354]
[1749460196747,0.26770363,650.04,649.49,3.82380927]
[1749460199952,0.26770363,650.04,649.51,3.82380927]
[1749460200861,0.26770363,650.04,649.52,1.331]
[1749460205661,0.26770363,650.04,649.54,3.82380927]
[1749460207160,0.26770363,650.04,649.53,3.82380927]
[1749460207965,0.26770363,650.04,649.52,5.15480927]
[1749460208764,0.26770775,650.1,649.52,5.15480927]
[1749460210668,0.26770775,650.1,649.55,3.82380927]
[1749460211465,0.26770775,650.1,649.53,3.82380927]
[1749460212066,0.26770775,650.1,649.55,3.82380927]
[1749460215367,0.26770775,650.1,649.58,3.82380927]
[1749460215866,0.26770775,650.1,649.6,3.82380927]
[1749460217065,0.26770775,650.1,649.61,3.82380927]
[1749460217969,0.26770775,650.1,649.62,3.82380927]
[1749460218370,0.26770775,650.1,649.55,3.82380927]
[1749460219871,0.26770775,650.1,649.54,3.82380927]
[1749460221270,0.26770775,650.1,649.55,3.82380927]
[1749460221970,0.26770775,650.1,649.3,5.35333299]
[1749460222372,0.26770775,650.1,649.13,0.26779943]
[1749460224068,0.26770775,650.1,649.14,1.074]
[1749460224569,0.26770775,650.1,649.14,1.38209994]
[1749460228973,0.26770775,650.1,649.22,0.26774792]
[1749460233881,0.26770775,650.1,649.22,4.09155719]
[1749460234384,0.26770775,650.1,649.52,3.82380927]
[1749460234781,0.26770775,650.1,649.51,3.82380927]
[1749460236080,0.26770775,650.1,649.55,3.82380927]
[1749460236582,0.26770775,650.1,649.66,3.82380927]
[1749460237880,0.26770775,650.1,649.65,3.82380927]
[1749460238379,0.26770775,650.1,649.66,3.82380927]
[1749460238782,0.26770775,650.1,649.62,3.82380927]
[1749460239386,0.26770775,650.1,649.51,3.82380927]
[1749460240286,0.26770775,650.1,649.49,3.82380927]
[1749460241588,0.26770775,650.1,649.41,3.82380927]
[1749460243586,0.26770775,650.1,649.36,3.82380927]
[1749460245289,0.26770775,650.1,649.31,3.82380927]
[1749460246185,0.26770775,650.1,649.3,3.82380927]
[1749460248489,0.26770775,650.1,649.31,3.82380927]
[1749460248886,0.26770775,650.1,649.35,3.82380927]
[1749460250788,0.26770775,650.1,649.34,3.82380927]
[1749460251693,0.26770775,650.1,649.4,3.82380927]
[1749460253192,0.26770775,650.1,649.41,1.354]
[1749460253394,0.26770775,650.1,649.41,5.17780927]
[1749460253790,0.26770775,650.1,649.41,1.354]
[1749460263706,0.26770775,650.1,649.46,3.82380927]
[1749460267410,0.26770775,650.1,649.47,3.82380927]
[1749460267813,0.26770775,650.1,649.45,3.82380927]
[1749460268214,0.26770775,650.1,649.46,3.82380927]
[1749460269111,0.26770775,650.1,649.49,3.82380927]
[1749460273624,0.26770775,650.1,649.44,3.82380927]
[1749460274121,0.26770775,650.1,649.49,3.82380927]
[1749460274626,0.26770775,650.1,649.55,3.82380927]
[1749460277223,0.26770775,650.1,649.56,3.82380927]
[1749460277621,0.26770775,650.1,649.63,3.82380927]
[1749460278123,0.26770775,650.1,649.62,3.82380927]
[1749460278526,0.26770775,650.1,649.63,3.82380927]
[1749460281732,0.26770775,650.1,649.64,3.82380927]
[1749460282531,0.26770775,650.1,649.65,1.559]
[1749460312544,0.26770775,650.1,649.32,3.82380927]
[1749460313743,0.26770775,650.1,649.27,3.82380927]
[1749460315048,0.26770775,650.1,649.28,5.32280927]
[1749460315450,0.26770775,650.1,649.28,1.499]
[1749460316549,0.26770775,650.1,649.32,3.82380927]
[1749460317750,0.26770775,650.1,649.4,3.82380927]
[1749460318345,0.26770775,650.1,649.41,3.82380927]
[1749460319150,0.26770775,650.1,649.44,3.82380927]
[1749460321453,0.26770775,650.1,649.46,3.82380927]
[1749460323656,0.26770775,650.1,649.49,3.82380927]
[1749460324159,0.26770775,650.1,649.5,3.82380927]
[1749460325551,0.26770775,650.1,649.28,1.499]
[1749460325552,0.26770775,650.1,649.52,3.82380927]
[1749460325955,0.26770775,650.1,649.59,3.82380927]
[1749460326256,0.26770775,650.1,649.58,3.82380927]
[1749460327358,0.26770775,650.1,649.6,3.82380927]
[1749460329459,0.26770775,650.1,649.61,3.82380927]
[1749460330956,0.26770775,650.1,649.62,3.82380927]
[1749460331256,0.26770775,650.1,649.65,3.82380927]
[1749460332255,0.26770775,650.1,649.64,3.82380927]
[1749460333456,0.26770775,650.1,649.65,1.482]
[1749460338763,1.09936233,650.44,649.65,1.482]
[1749460338962,0.26767789,650.2,649.65,1.482]
[1749460358481,0.26767789,650.2,649.52,3.82380927]
[1749460359186,0.26767789,650.2,649.53,3.82380927]
[1749460361488,0.26767789,650.2,649.52,3.82380927]
[1749460361889,0.26767789,650.2,649.53,5.36280927]
[1749460362286,0.26767789,650.2,649.55,3.82380927]
[1749460363384,0.26767789,650.2,649.56,3.82380927]
[1749460363888,0.26767789,650.2,649.53,1.539]
[1749460363889,0.26767789,650.2,649.54,3.82380927]
[1749460366090,0.26767789,650.2,649.53,1.539]
[1749460366091,0.26767789,650.2,649.68,3.82380927]
[1749460367791,0.26767789,650.2,649.54,3.82380927]
[1749460369292,0.26767789,650.2,649.53,1.539]
[1749460374090,0.26767789,650.2,649.38,3.82380927]
[1749460374795,0.26767789,650.2,649.22,0.26774792]
[1749460374796,0.26767789,650.2,649.43,3.82380927]
[1749460375096,0.26767789,650.2,649.44,3.82380927]
[1749460376393,0.26767789,650.2,649.46,3.82380927]
[1749460376993,0.26767789,650.2,649.47,1.381]
[1749460377497,0.26767789,650.2,649.47,5.20480927]
[1749460378392,0.26767789,650.2,649.49,3.82380927]
[1749460379696,0.26767789,650.2,649.5,3.82380927]
[1749460380095,0.26767789,650.2,649.56,3.82380927]
[1749460380494,0.26767789,650.2,649.55,3.82380927]
[1749460381398,0.26767789,650.2,649.57,3.82380927]
[1749460381794,0.26767789,650.2,649.61,3.82380927]
[1749460382299,0.26767789,650.2,649.66,3.82380927]
[1749460382798,0.26767789,650.2,649.67,3.82380927]
[1749460383200,0.26767789,650.2,649.48,3.82380927]
[1749460383699,0.26767789,650.2,649.5,3.82380927]
[1749460384495,0.26767789,650.2,649.51,3.82380927]
[1749460387300,0.26767789,650.2,649.5,3.82380927]
[1749460387600,0.26767789,650.2,649.51,3.82380927]
[1749460391404,0.26767789,650.2,649.25,5.35333299]
[1749460391405,0.26767789,650.2,649.52,3.82380927]
[1749460392406,0.26767789,650.2,649.53,1.282]
[1749460393606,0.26767789,650.2,649.55,3.82380927]
[1749460394605,0.26767789,650.2,649.56,3.82380927]
[1749460395907,0.26767789,650.2,649.54,3.82380927]
[1749460396303,0.26767789,650.2,649.55,3.82380927]
[1749460397606,0.26767789,650.2,649.56,3.82380927]
[1749460398105,0.26767789,650.2,649.53,1.282]
[1749460399110,0.2676254,650.29,649.53,1.282]